[Event "World Junior U20 Open 2018"]
[Site "Gebze"]
[Date "2018.09.13"]
[Round "9.61"]
[White "Petkov, Momchil"]
[Black "Sevgi, Volkan"]
[Result "1-0"]
[ECO "D00"]
[WhiteElo "2163"]
[BlackElo "2323"]
[Annotator "NA"]
[PlyCount "143"]
[EventDate "2018.09.05"]
[EventType "swiss"]
[EventCountry "TUR"]
[SourceTitle "playchess.com"]
[Source "ChessBase"]
[SourceQuality "1"]
[TimeControl "40/5400+30:1800+30"]

1. d4 {[%emt 0:00:30]} d5 {[%emt 0:00:30]} 2. Bf4 {[%emt 0:00:30]} Nf6 {[%emt 0:00:00]} 3. e3 {[%emt 0:00:00]} e6 {[%emt 0:00:00]} 4. Nd2 {[%emt 0:00:00]} c5 {[%emt 0:00:30]} 5. c3 {[%emt 0:00:30]} Bd6 {[%emt 0:00:30]} 6. Bg3 {[%emt 0:00:30] D00: 1 d4 d5: Unusual lines} (6. Bb5+ Nc6 7. Bg3 Bxg3 8. hxg3 Qd6 9. g4 e5 10. dxe5 Qxe5 11. Ngf3 Qe7 12. g5 Ne4 13. Bxc6+ bxc6 {0-1 (31) Naiditsch,A (2705)-Inarkiev,E (2689) Riadh 2017}) 6... Qc7 {[%emt 0:00:30]} 7. Bxd6 {[%emt 0:04:30]} Qxd6 {[%emt 0:00:00]} 8. f4 {[%emt 0:01:30]} Qb6 {[%emt 0:17:30]} 9. Rb1 {[%emt 0:07:30]} Bd7 {[%emt 0:03:30]} 10. Bd3 {[%emt 0:11:30]} Bb5 {[%emt 0:03:30]} 11. Bc2 $146 {[%emt 0:05:30]} ({Predecessor:} 11. Qe2 Bxd3 12. Qxd3 a5 13. Ngf3 Qa6 14. Qxa6 Nxa6 {0-1 (60) Carvallo,H (2156)-Sebag,M (2509) France 2008}) 11... a5 {[%emt 0:00:30]} 12. h3 {[%emt 0:02:30]} Nc6 {[%emt 0:09:30]} 13. Ngf3 {[%emt 0:11:30]} h6 {[%emt 0:41:30]} 14. Nb3 {[%emt 0:12:30]} Nd7 {[%emt 0:04:30]} 15. Kf2 {[%emt 0:03:30]} a4 {[%emt 0:05:30]} 16. Nc1 {[%emt 0:00:30]} Qc7 {[%emt 0:57:00]} 17. Nd3 {[%emt 0:04:30]} Bxd3 {[%emt 0:02:30]} 18. Bxd3 c4 19. Bc2 b5 20. a3 O-O-O 21. Qd2 Nf6 {[%emt 1:21:14]} 22. Ne5 {[%emt 1:18:00]} Nxe5 {[%emt 0:00:30]} 23. fxe5 {[%emt 0:00:30]} Ne8 {[%emt 0:02:54]} 24. Rhf1 {[%emt 0:04:40]} f6 {[%emt 0:00:42]} 25. exf6 {[%emt 0:00:30]} gxf6 {[%emt 0:00:04]} 26. e4 {[%emt 0:04:24]} dxe4 {[%emt 0:01:51]} 27. Bxe4 {[%emt 0:00:25]} f5 {[%emt 0:06:20]} 28. Bc2 {[%emt 0:00:55]} Nf6 {[%emt 0:01:02]} (28... Qh2 $14) 29. Rbe1 {[%emt 0:01:10]} Qd6 {[%emt 0:03:32]} 30. Kg1 {[%emt 0:00:26]} Kc7 {[%emt 0:00:53]} 31. Qe3 {[%emt 0:01:52]} Rde8 {[%emt 0:00:59]} 32. Qf3 {[%emt 0:00:38]} Nd7 {[%emt 0:01:08]} 33. Re2 {[%emt 0:01:02]} Rhg8 {[%emt 0:02:05]} 34. Rfe1 {[%emt 0:01:33]} Rg3 {[%emt 0:00:41]} 35. Qf2 {[%emt 0:01:13]} f4 {[%emt 0:02:19]} 36. Be4 {[%emt 0:02:22]} Kb8 {[%emt 0:00:49]} 37. Bf3 {[%emt 0:02:28]} Re7 {[%emt 0:00:48]} 38. Kh1 {[%emt 0:01:17]} Rg6 {[%emt 0:00:20]} 39. Qh4 {[%emt 0:00:46]} Kc7 {[%emt 0:00:54]} 40. Qh5 {[%emt 0:00:00]} Rg3 {[%emt 0:00:00]} 41. Qxb5 {[%emt 0:03:19]} Nb6 {[%emt 0:04:25]} 42. Re5 {[%emt 0:01:30]} Kb8 {[%emt 0:15:14]} 43. Bc6 {[%emt 0:02:30]} Qc7 {[%emt 0:01:57]} 44. Rxe6 {[%emt 0:00:30]} Rxe6 {[%emt 0:00:01]} 45. Rxe6 {[%emt 0:00:00]} Re3 {[%emt 0:00:15]} 46. Qf5 {[%emt 0:11:00]} Ka7 {[%emt 0:02:03]} 47. Rxe3 {[%emt 0:00:53]} fxe3 {[%emt 0:00:03]} 48. Bf3 {[%emt 0:00:07]} Qd6 {[%emt 0:01:23]} 49. Qe4 {[%emt 0:00:30]} Ka6 {[%emt 0:01:04]} 50. Qxe3 {[%emt 0:00:47]} Qg6 {[%emt 0:00:01]} 51. Be4 {[%emt 0:03:29]} Qf6 {[%emt 0:00:37]} 52. Kg1 {[%emt 0:00:49]} Qh4 {[%emt 0:00:16]} 53. d5 {[%emt 0:01:16]} Qe7 {[%emt 0:00:02]} 54. Qd4 {[%emt 0:01:12]} Qd6 {[%emt 0:00:01]} 55. Bf3 {[%emt 0:00:21]} Kb5 {[%emt 0:00:01]} 56. Qe3 {[%emt 0:00:54]} Nd7 {[%emt 0:03:18]} 57. Qe6 {[%emt 0:01:27]} Kc5 {[%emt 0:00:05]} 58. Qe3+ {[%emt 0:02:33]} Kb5 {[%emt 0:00:04]} 59. Qe6 {[%emt 0:00:08]} Kc5 {[%emt 0:00:05]} 60. Qxd6+ {[%emt 0:01:06]} Kxd6 {[%emt 0:00:08]} 61. Kf2 {[%emt 0:01:27]} Ke5 {[%emt 0:00:12]} 62. Ke3 {[%emt 0:00:19]} Nc5 {[%emt 0:00:29]} 63. g4 {[%emt 0:00:24]} Kd6 {[%emt 0:01:09]} 64. h4 {[%emt 0:00:43]} Ke5 {[%emt 0:00:51]} 65. g5 {[%emt 0:01:44]} hxg5 {[%emt 0:00:01]} 66. hxg5 {[%emt 0:00:08]} Nb7 {[%emt 0:00:09]} 67. g6 {[%emt 0:00:35]} Nd6 {[%emt 0:00:05]} 68. Bg4 {[%emt 0:00:59]} Ne8 {[%emt 0:00:03]} 69. d6 {[%emt 0:00:10]} Kxd6 {[%emt 0:00:16]} 70. Kd4 {[%emt 0:00:33]} Nf6 {[%emt 0:00:02]} 71. Bf3 {[%emt 0:00:06]} Nd7 {[%emt 0:00:29]} 72. g7 {[%emt 0:00:16]} 1-0

[Event "World Junior U20 Open 2018"]
[Site "Gebze"]
[Date "2018.09.13"]
[Round "9.62"]
[White "Zlatin, Alexander"]
[Black "Eren, Ataberk"]
[Result "1/2-1/2"]
[ECO "C00"]
[WhiteElo "2312"]
[BlackElo "2180"]
[Annotator "ChessBase"]
[PlyCount "94"]
[EventDate "2018.09.05"]
[EventType "swiss"]
[EventCountry "TUR"]
[SourceTitle "playchess.com"]
[Source "ChessBase"]
[SourceQuality "1"]
[TimeControl "40/5400+30:1800+30"]

1. e4 e6 2. Qe2 c5 3. f4 Nc6 4. Nf3 d6 5. g3 g6 6. Bg2 Bg7 7. c3 Nge7 8. O-O O-O 9. Na3 Rb8 10. Rd1 d5 11. e5 c4 12. d4 cxd3 13. Qxd3 a6 14. Be3 b5 15. b4 Bb7 16. Bc5 Re8 17. Nc2 Nc8 18. a4 bxa4 19. Qe3 Qd7 20. Nce1 Nd8 21. Nd4 Nc6 22. Nd3 N8e7 23. g4 Nc8 24. Ra2 a5 {[%emt 1:37:15]} 25. Nxc6 {[%emt 1:00:30]} Bxc6 {[%emt 0:00:30]} 26. bxa5 {[%emt 0:00:30]} Rd8 {[%emt 0:00:30]} 27. Nb4 {[%emt 0:00:30]} Bb5 {[%emt 0:00:30]} 28. f5 {[%emt 0:04:30]} exf5 {[%emt 0:04:41]} 29. Bxd5 {[%emt 0:00:30]} Qe8 {[%emt 0:00:15]} 30. gxf5 {[%emt 0:02:30]} Ne7 {[%emt 0:00:31]} 31. f6 {[%emt 0:02:30]} Nf5 {[%emt 0:00:30]} 32. Qe4 {[%emt 0:00:30]} Bxf6 {[%emt 0:00:30]} 33. Re1 {[%emt 0:01:30]} Be7 {[%emt 0:00:29]} 34. Bf2 {[%emt 0:02:30]} Rbc8 {[%emt 0:00:14]} 35. e6 {[%emt 0:05:30]} f6 {[%emt 0:00:11]} 36. Bb6 {[%emt 0:00:30]} Rd6 {[%emt 0:00:39]} 37. c4 {[%emt 0:00:30]} Rxb6 {[%emt 0:01:06]} 38. axb6 {[%emt 0:02:30]} Bc5+ {[%emt 0:00:28]} 39. Kh1 {[%emt 0:00:30]} Bxb4 {[%emt 0:00:32]} 40. Rb1 {[%emt 0:00:00]} Nd6 {[%emt 0:00:00]} 41. Qf3 {[%emt 0:18:00]} Bxc4 {[%emt 0:07:39]} 42. Rf2 {[%emt 0:01:30]} Bxd5 {[%emt 0:10:01]} 43. Qxd5 {[%emt 0:00:30]} Rc5 {[%emt 0:00:00]} 44. Qf3 {[%emt 0:08:30]} Rf5 {[%emt 0:07:47]} 45. Qg2 {[%emt 0:00:30]} Rg5 {[%emt 0:00:09]} 46. Qf3 {[%emt 0:00:00]} Rf5 {[%emt 0:00:00]} 47. Qg2 {[%emt 0:00:00]} Rg5 {[%emt 0:00:56]} 1/2-1/2

[Event "World Junior U20 Open 2018"]
[Site "Gebze"]
[Date "2018.09.13"]
[Round "9.63"]
[White "Tifferet, Shaked"]
[Black "Sezdbekov, Ruslan"]
[Result "0-1"]
[ECO "A45"]
[WhiteElo "2299"]
[BlackElo "2160"]
[Annotator "NA"]
[PlyCount "72"]
[EventDate "2018.09.05"]
[EventType "swiss"]
[EventCountry "TUR"]
[SourceTitle "playchess.com"]
[Source "ChessBase"]
[SourceQuality "1"]
[TimeControl "40/5400+30:1800+30"]

1. d4 {[%emt 0:00:30]} Nf6 {[%emt 0:00:30]} 2. Bg5 {[%emt 0:00:30]} b6 {[%emt 0:00:30]} 3. Bxf6 {[%emt 0:02:00]} gxf6 {[%emt 0:01:30]} 4. c4 {[%emt 0:07:30]} Bb7 {[%emt 0:01:30]} 5. Nc3 {[%emt 0:01:30]} e5 {[%emt 0:03:30]} 6. e3 {[%emt 0:11:30]} d6 {[%emt 0:03:30]} 7. Nf3 {[%emt 0:01:30]} Nc6 {[%emt 0:03:30]} 8. d5 {[%emt 0:18:30]} Ne7 $16 {[%emt 0:01:30]} 9. c5 bxc5 10. Bb5+ c6 11. dxc6 Nxc6 12. O-O f5 13. Qa4 Qc8 14. b4 e4 15. Nd2 a6 16. Be2 Bg7 17. Nc4 O-O 18. Rac1 {[%emt 1:28:50]} Qe6 {[%emt 1:09:00]} 19. bxc5 {[%emt 0:00:30]} dxc5 {[%emt 0:00:30]} 20. Qa3 {[%emt 0:02:36]} f4 {[%emt 0:11:00]} 21. exf4 {[%emt 0:00:48]} Nd4 {[%emt 0:02:05]} 22. Ne3 {[%emt 0:00:30]} Kh8 {[%emt 0:02:36]} 23. f5 {[%emt 0:02:20]} Qh6 {[%emt 0:00:59]} 24. Ng4 {[%emt 0:01:52]} Qg5 {[%emt 0:00:57]} 25. f6 {[%emt 0:00:30]} Bxf6 {[%emt 0:00:30]} 26. Nxf6 {[%emt 0:00:30]} Qxf6 {[%emt 0:00:00]} 27. Bg4 {[%emt 0:01:46]} Rg8 {[%emt 0:00:56]} 28. h3 {[%emt 0:01:00]} Rxg4 {[%emt 0:05:26]} 29. hxg4 {[%emt 0:00:05]} Rg8 {[%emt 0:00:34]} 30. Rfe1 {[%emt 0:01:50]} Rxg4 {[%emt 0:00:39]} 31. Re3 {[%emt 0:01:36]} Qg5 {[%emt 0:01:50]} 32. Rg3 {[%emt 0:00:27]} e3 {[%emt 0:00:24]} 33. Rxg4 {[%emt 0:01:06]} Qxg4 {[%emt 0:00:05]} 34. f3 {[%emt 0:00:05]} Nxf3+ {[%emt 0:02:51]} 35. Kf1 {[%emt 0:00:01]} Nh2+ {[%emt 0:00:08]} 36. Ke1 {[%emt 0:00:30]} Qxg2 {[%emt 0:00:00]} 0-1

[Event "World Junior U20 Open 2018"]
[Site "Gebze"]
[Date "2018.09.13"]
[Round "9.64"]
[White "Akdogan, Alperen"]
[Black "Ongut, Tamas Gunes"]
[Result "0-1"]
[ECO "A61"]
[WhiteElo "2278"]
[BlackElo "2121"]
[Annotator "NA"]
[PlyCount "120"]
[EventDate "2018.09.05"]
[EventType "swiss"]
[EventCountry "TUR"]
[SourceTitle "playchess.com"]
[Source "ChessBase"]
[SourceQuality "1"]
[TimeControl "40/5400+30:1800+30"]

1. d4 Nf6 2. c4 e6 3. Nf3 c5 4. d5 exd5 5. cxd5 d6 6. Nc3 g6 7. Bf4 Bg7 8. Qa4+ Bd7 9. Qb3 b5 10. Bxd6 Qb6 11. Be5 O-O 12. e3 c4 13. Qd1 {A61: Modern Benoni: Nf3 without early e4} b4 14. Ne2 (14. Nb1 Rc8 15. Nbd2 Bb5 16. a4 bxa3 17. Rxa3 Bf8 18. Bd4 Qb7 19. Ra1 Nxd5 20. Be2 Nc6 {½-½ (59) Nakamura,H (2791)-Caruana,F (2807) Saint Louis 2016 CBM 174 [Iotov,V]}) 14... Rc8 15. Nf4 c3 16. Bd3 Qa5 17. O-O {[#]} Nxd5 $146 ({Predecessor:} 17... Ba4 18. b3 Be8 19. a3 bxa3 20. Qc1 Nbd7 21. Rxa3 Qb4 22. Bd4 Nc5 23. Bc4 Nfe4 24. Ne5 c2 25. Ned3 Qd2 26. Nxc5 Bxd4 27. exd4 {1-0 (27) Enchev,I (2492)-Gabrielian,A (2502) Rochefort 2018}) 18. Be4 Nxf4 19. Bxg7 Bc6 20. exf4 Bxe4 21. Qd4 {[%emt 1:39:11]} Qd5 {[%emt 0:59:30]} 22. bxc3 {[%emt 0:00:30]} Qxd4 {[%emt 0:12:30]} 23. Bxd4 {[%emt 0:00:09]} bxc3 {[%emt 0:00:30]} 24. Ne5 {[%emt 0:01:19]} c2 {[%emt 0:02:30]} 25. Ng4 {[%emt 0:00:30]} Nd7 {[%emt 0:00:30]} 26. Rac1 {[%emt 0:00:30]} Rc4 {[%emt 0:01:30]} 27. Be3 {[%emt 0:00:43]} h5 {[%emt 0:05:30]} 28. Ne5 {[%emt 0:00:00]} Nxe5 {[%emt 0:01:30]} 29. fxe5 {[%emt 0:00:07]} Ra4 {[%emt 0:07:54]} 30. f3 {[%emt 0:01:11]} Bd3 {[%emt 0:00:46]} 31. Rf2 {[%emt 0:00:01]} Rxa2 {[%emt 0:00:51]} 32. Rd2 {[%emt 0:00:01]} Ra3 {[%emt 0:01:25]} 33. Bg5 {[%emt 0:01:14]} Rc8 {[%emt 0:00:26]} 34. Kf2 {[%emt 0:00:28]} Rb3 {[%emt 0:00:32]} 35. Ke1 {[%emt 0:00:00]} Rc5 {[%emt 0:00:50]} 36. Bf4 {[%emt 0:01:35]} g5 {[%emt 0:03:23]} 37. Be3 {[%emt 0:00:03]} Rxe5 {[%emt 0:00:07]} 38. Kf2 {[%emt 0:00:06]} a5 {[%emt 0:00:38]} 39. Bd4 {[%emt 0:00:43]} Rd5 {[%emt 0:00:12]} 40. Bf6 {[%emt 0:00:00]} Rf5 {[%emt 0:00:00]} 41. Ba1 {[%emt 0:03:09]} Rc5 {[%emt 0:03:26]} 42. g4 {[%emt 0:03:30]} Rb1 {[%emt 0:00:30]} 43. Rxd3 {[%emt 0:00:00]} f6 {[%emt 0:00:30]} 44. Bb2 {[%emt 0:20:56]} Rxb2 {[%emt 0:00:30]} 45. Ke2 {[%emt 0:00:05]} h4 {[%emt 0:00:30]} 46. Kd2 {[%emt 0:01:01]} Kf7 {[%emt 0:01:30]} 47. Rd8 {[%emt 0:04:37]} Rb1 {[%emt 0:00:30]} 48. Rxc2 {[%emt 0:00:47]} Rxc2+ {[%emt 0:00:30]} 49. Kxc2 {[%emt 0:00:00]} Rf1 {[%emt 0:01:30]} 50. Rd3 {[%emt 0:01:51]} Rf2+ {[%emt 0:00:00]} 51. Kc3 {[%emt 0:01:11]} Rxh2 {[%emt 0:00:00]} 52. Kd4 {[%emt 0:00:00]} Rg2 {[%emt 0:00:30]} 53. Rd1 $19 {[%emt 0:00:20]} h3 {[%emt 0:01:30]} 54. Rh1 {[%emt 0:00:30]} h2 {[%emt 0:00:30]} 55. Ke3 {[%emt 0:00:23]} Rb2 {[%emt 0:00:00]} 56. f4 {[%emt 0:00:48]} f5 {[%emt 0:02:00]} 57. fxg5 {[%emt 0:00:52]} fxg4 {[%emt 0:00:30]} 58. Kf4 {[%emt 0:00:00]} a4 {[%emt 0:02:30]} 59. Kf5 {[%emt 0:00:32]} g3 {[%emt 0:00:30]} 60. Rc1 {[%emt 0:00:40]} Rb5+ {[%emt 0:00:00]} 0-1

[Event "World Junior U20 Open 2018"]
[Site "Gebze"]
[Date "2018.09.13"]
[Round "9.65"]
[White "Erdogan, Anil Berk"]
[Black "Vanczak, Tamas"]
[Result "1-0"]
[ECO "C77"]
[WhiteElo "2083"]
[BlackElo "2276"]
[Annotator "NA"]
[PlyCount "101"]
[EventDate "2018.09.05"]
[EventType "swiss"]
[EventCountry "TUR"]
[SourceTitle "playchess.com"]
[Source "ChessBase"]
[SourceQuality "1"]
[TimeControl "40/5400+30:1800+30"]

1. e4 {[%emt 0:00:30]} e5 {[%emt 0:00:30]} 2. Nf3 {[%emt 0:00:30]} Nc6 {[%emt 0:00:30]} 3. Bb5 {[%emt 0:01:30]} a6 {[%emt 0:00:30]} 4. Ba4 {[%emt 0:00:30]} Nf6 {[%emt 0:00:00]} 5. Bxc6 {[%emt 0:00:00]} dxc6 {[%emt 0:00:00]} 6. d3 {[%emt 0:00:30]} Nd7 {[%emt 0:00:30]} 7. Nbd2 {[%emt 0:00:30]} g6 {[%emt 0:00:30] C77: Ruy Lopez: 3...a6 4 Ba4 Nf6, unusual lines} (7... c5 8. Nc4 f6 9. O-O Nb6 10. Ne3 Be6 11. b3 g5 12. Bb2 Qd7 13. a4 Rd8 14. Nd2 h5 15. Ndc4 {1-0 (62) Bartel,M (2664)-Korobov,A (2693) Wroclaw 2014}) 8. b3 {[%emt 0:00:30]} Bg7 {[%emt 0:03:30]} 9. Bb2 {[%emt 0:05:00]} Qe7 {[%emt 0:05:30]} 10. Qe2 $146 {[%emt 0:12:30]} ({Predecessor:} 10. O-O O-O 11. d4 a5 12. Nc4 b6 13. Nfd2 Qg5 14. Qe2 Re8 15. Rae1 Ba6 16. Kh1 Bxc4 17. Nxc4 Nc5 18. g3 Nd7 19. f4 Qe7 20. f5 b5 {0-1 (20) Lukovnikov,A (2342)-Matinian,N (2262) Voronezh 2008}) 10... b6 {[%emt 0:11:30]} 11. d4 {[%emt 0:14:30]} (11. Nc4 $11) 11... Bb7 12. dxe5 Nxe5 13. Nxe5 Bxe5 {[%emt 0:36:30]} 14. Bxe5 {[%emt 0:49:00]} Qxe5 {[%emt 0:00:30]} 15. O-O {[%emt 0:00:30]} O-O-O {[%emt 0:00:30]} 16. Nc4 {[%emt 0:10:30]} Qf4 {[%emt 0:08:30]} 17. Qe3 {[%emt 0:05:30]} Qxe3 {[%emt 0:51:30]} 18. fxe3 {[%emt 0:00:30]} c5 {[%emt 0:00:30]} 19. Ne5 {[%emt 0:08:30]} (19. Rxf7 $142 Bxe4 20. Rf2) 19... Rhe8 {[%emt 0:03:30]} 20. Nxf7 {[%emt 0:02:30]} Rd2 {[%emt 0:00:30]} 21. Ng5 {[%emt 0:02:30]} h6 {[%emt 0:01:30]} 22. Nf3 {[%emt 0:01:30]} Rxc2 23. e5 Bxf3 24. gxf3 Rxe5 25. Rf2 Rc3 26. e4 {[%emt 1:26:06]} c4 {[%emt 1:13:00]} 27. bxc4 {[%emt 0:00:30]} Rxc4 {[%emt 0:00:30]} 28. Rd1 {[%emt 0:00:30]} Rc3 {[%emt 0:00:30]} 29. Kg2 {[%emt 0:03:21]} a5 {[%emt 0:07:30]} 30. h4 {[%emt 0:04:18]} a4 {[%emt 0:03:30]} 31. Rd4 {[%emt 0:01:09]} b5 {[%emt 0:05:20]} 32. f4 {[%emt 0:01:26]} Re7 {[%emt 0:08:15]} 33. h5 {[%emt 0:06:55]} gxh5 {[%emt 0:00:07]} 34. f5 {[%emt 0:00:24]} Rc5 {[%emt 0:01:14]} 35. Kf3 {[%emt 0:01:17]} Rce5 {[%emt 0:04:28]} 36. Re2 {[%emt 0:00:36]} Rd7 {[%emt 0:01:28]} 37. Red2 {[%emt 0:01:18]} Rg7 {[%emt 0:00:59]} 38. Rd5 {[%emt 0:00:37]} Rxd5 {[%emt 0:01:19]} 39. Rxd5 {[%emt 0:00:11]} c6 {[%emt 0:00:26]} 40. Rd2 {[%emt 0:00:37]} Rd7 {[%emt 0:00:00]} 41. Rg2 {[%emt 0:06:15]} b4 {[%emt 0:09:54]} 42. Kf4 $11 {[%emt 0:14:59]} b3 {[%emt 0:05:57]} 43. f6 {[%emt 0:01:54]} Rd1 {[%emt 0:02:28]} 44. Ke5 {[%emt 0:01:00]} Rf1 {[%emt 0:00:44]} 45. axb3 {[%emt 0:05:14]} axb3 {[%emt 0:00:06]} 46. Ke6 {[%emt 0:01:10]} c5 {[%emt 0:01:12]} 47. f7 {[%emt 0:01:00]} c4 {[%emt 0:02:55]} 48. Rg1 {[%emt 0:00:37]} Rf4 {[%emt 0:04:23]} 49. Rc1 {[%emt 0:00:33]} Kd8 {[%emt 0:01:34]} 50. Rxc4 {[%emt 0:00:10]} h4 {[%emt 0:00:54]} 51. Rb4 {[%emt 0:00:41]} 1-0

[Event "World Junior U20 Open 2018"]
[Site "Gebze"]
[Date "2018.09.13"]
[Round "9.66"]
[White "Ozgur, Tibet Kagan"]
[Black "Kilic, Efe Mert"]
[Result "0-1"]
[ECO "D70"]
[WhiteElo "2056"]
[BlackElo "2269"]
[Annotator "NA"]
[PlyCount "130"]
[EventDate "2018.09.05"]
[EventType "swiss"]
[EventCountry "TUR"]
[SourceTitle "playchess.com"]
[Source "ChessBase"]
[SourceQuality "1"]
[TimeControl "40/5400+30:1800+30"]

1. Nf3 {[%emt 0:00:30]} Nf6 {[%emt 0:02:30]} 2. c4 {[%emt 0:02:30]} c6 {[%emt 0:00:30]} 3. d4 {[%emt 0:00:30]} d5 {[%emt 0:00:30]} 4. Nbd2 {[%emt 0:00:30]} g6 {[%emt 0:02:30]} 5. e3 {[%emt 0:05:30]} Bg7 {[%emt 0:00:30]} 6. Bd3 {[%emt 0:00:30]} O-O {[%emt 0:00:30]} 7. O-O {[%emt 0:01:30]} Nbd7 {[%emt 0:04:30]} 8. Re1 {[%emt 0:08:30] D70: Grünfeld: Unusual White 3rd moves (met by ...d5)} (8. b3 b6 9. a4 a5 10. e4 dxe4 11. Nxe4 Bb7 12. Bb2 c5 13. Re1 Rc8 14. Qe2 cxd4 15. Bxd4 Nc5 16. Bxc5 bxc5 {1-0 (59) Nakamura,H (2785)-Caruana,F (2808) Stavanger 2017}) 8... Qc7 {[%emt 0:05:30]} 9. e4 $146 {[%emt 0:04:30]} ({Predecessor:} 9. Qc2 e5 10. dxe5 Nxe5 11. Nxe5 Qxe5 12. Nf3 Qc7 13. h3 dxc4 14. Bxc4 Bd7 15. Bd2 Rad8 {½-½ (24) Da Silva,J (2116)-Silva,J (1832) Parauapebas 2015}) 9... dxe4 {[%emt 0:00:30]} 10. Nxe4 {[%emt 0:00:30]} Nxe4 {[%emt 0:02:30]} 11. Rxe4 {[%emt 0:01:30]} e5 {[%emt 0:04:30]} 12. Nxe5 Nxe5 13. dxe5 Bf5 14. Re3 Rad8 15. Qe2 Bxd3 16. Rxd3 Rxd3 17. Qxd3 Rd8 18. Qf1 Bxe5 19. g3 Bd4 20. Qe2 Qb6 21. Bg5 Ra8 {[%emt 1:01:30]} 22. Bh6 {[%emt 1:40:07]} c5 {[%emt 0:07:30]} 23. Re1 {[%emt 0:00:30]} Qc6 {[%emt 0:00:30]} 24. b3 {[%emt 0:00:13]} Bc3 {[%emt 0:03:30]} 25. Bd2 {[%emt 0:00:57]} Bg7 {[%emt 0:01:30]} 26. Bg5 {[%emt 0:00:30]} h6 {[%emt 0:00:30]} 27. Bf4 {[%emt 0:00:30]} Rd8 {[%emt 0:00:30]} 28. Qe7 {[%emt 0:00:30]} Bf6 {[%emt 0:00:30]} 29. Qe4 {[%emt 0:00:29]} Qxe4 {[%emt 0:05:30]} 30. Rxe4 {[%emt 0:00:30]} Kg7 {[%emt 0:00:30]} 31. Re1 {[%emt 0:00:36]} g5 {[%emt 0:02:30]} 32. Be3 {[%emt 0:00:07]} b6 {[%emt 0:00:30]} 33. Kf1 {[%emt 0:00:57]} Bc3 {[%emt 0:00:00]} 34. Rc1 {[%emt 0:00:07]} Be5 {[%emt 0:00:00]} 35. Ke2 {[%emt 0:00:13]} f5 {[%emt 0:00:30]} 36. Bd2 {[%emt 0:01:11]} Re8 {[%emt 0:01:30]} 37. Kf1 {[%emt 0:00:32]} Rd8 {[%emt 0:12:27]} 38. Ke2 {[%emt 0:00:05]} Bd4 {[%emt 0:00:43]} 39. Re1 {[%emt 0:00:46]} Kf6 {[%emt 0:01:36]} 40. Bc1 {[%emt 0:00:00]} a6 {[%emt 0:00:00]} 41. Be3 {[%emt 0:11:40]} Bxe3 {[%emt 0:09:44]} 42. Kxe3 $2 {[%emt 0:00:46]} (42. fxe3 $17 {is the only way for White.} Ke5 43. Rf1) 42... Re8+ {[%emt 0:02:30]} 43. Kd2 {[%emt 0:00:14]} Rxe1 {[%emt 0:00:00]} 44. Kxe1 {[%emt 0:00:30]} Ke5 {[%emt 0:02:00]} 45. h3 {[%emt 0:15:06]} (45. Ke2 {[%emt 0:15:06]} h5 {[%emt 0:00:30]} 46. Kd2 {[%emt 0:00:44]} Ke4 {[%emt 0:00:30]} 47. Ke2 {[%emt 0:00:14]} f4 {[%emt 0:01:50]} 48. h3 {[%emt 0:02:54]} Kd4 {[%emt 0:00:30]}) 45... h5 {[%emt 0:00:30]} 46. Ke2 {[%emt 0:00:30]} Kd4 {[%emt 0:00:30]} 47. Kd2 {[%emt 0:00:30]} Ke4 {[%emt 0:00:30]} 48. Ke2 {[%emt 0:00:30]} f4 {[%emt 0:00:30]} 49. f3+ $19 {[%emt 0:00:30]} Kd4 {[%emt 0:00:30]} 50. gxf4 {[%emt 0:00:30]} gxf4 {[%emt 0:00:30]} 51. Kd2 {[%emt 0:00:30]} a5 {[%emt 0:00:30]} 52. a3 {[%emt 0:00:30]} a4 {[%emt 0:00:30]} 53. bxa4 {[%emt 0:00:30]} Kxc4 {[%emt 0:00:30]} 54. Kc2 {[%emt 0:00:30]} h4 {[%emt 0:00:30]} 55. a5 {[%emt 0:00:30]} bxa5 {[%emt 0:00:30]} 56. a4 {[%emt 0:00:30]} Kd4 {[%emt 0:00:30]} 57. Kd2 {[%emt 0:00:30]} c4 {[%emt 0:13:00]} 58. Kc2 {[%emt 0:05:25]} c3 {[%emt 0:00:12]} 59. Kc1 {[%emt 0:00:15]} Kc4 {[%emt 0:00:36]} 60. Kc2 {[%emt 0:00:14]} Kb4 {[%emt 0:00:17]} 61. Kc1 {[%emt 0:00:30]} Kxa4 {[%emt 0:00:00]} 62. Kc2 {[%emt 0:00:36]} Kb4 {[%emt 0:00:02]} 63. Kc1 {[%emt 0:00:07]} Kb3 {[%emt 0:00:30]} 64. Kb1 {[%emt 0:00:30]} c2+ {[%emt 0:00:30]} 65. Kc1 {[%emt 0:00:30]} a4 {[%emt 0:00:00]} 0-1

[Event "World Junior U20 Open 2018"]
[Site "Gebze"]
[Date "2018.09.13"]
[Round "9.67"]
[White "Noboa, Kevin"]
[Black "Caglar, Ahmet Ata"]
[Result "1-0"]
[ECO "D85"]
[WhiteElo "2256"]
[BlackElo "2071"]
[Annotator "NA"]
[PlyCount "79"]
[EventDate "2018.09.05"]
[EventType "swiss"]
[EventCountry "TUR"]
[SourceTitle "playchess.com"]
[Source "ChessBase"]
[SourceQuality "1"]
[TimeControl "40/5400+30:1800+30"]

1. e4 {[%emt 0:02:30]} c5 {[%emt 0:00:30]} 2. Nf3 {[%emt 0:00:00]} Nc6 {[%emt 0:00:30]} 3. c3 {[%emt 0:00:00]} g6 {[%emt 0:00:30]} 4. d4 {[%emt 0:00:30]} cxd4 {[%emt 0:01:30]} 5. cxd4 {[%emt 0:01:00]} Bg7 {[%emt 0:00:30]} 6. Nc3 {[%emt 0:00:30]} d6 {[%emt 0:00:30]} 7. Be2 {[%emt 0:04:00]} Nf6 {[%emt 0:01:30]} 8. O-O {[%emt 0:05:30]} d5 {[%emt 0:04:30]} 9. e5 {[%emt 0:01:30]} Ne4 {[%emt 0:00:30]} 10. Be3 {[%emt 0:01:30]} Nxc3 {[%emt 0:00:30]} 11. bxc3 {[%emt 0:00:30]} O-O {[%emt 0:00:30]} 12. c4 {[%emt 0:16:30]} dxc4 {[%emt 0:01:30]} 13. Bxc4 {[%emt 0:04:30]} Bg4 {[%emt 0:00:30]} 14. Be2 {[%emt 0:04:30]} Nb4 {[%emt 0:13:30] D85: Exchange Grünfeld: Unusual White 7th moves and lines with 7 Nf3} (14... e6 15. h3 Bxf3 16. Bxf3 Qd7 17. Rc1 Rfc8 18. Qa4 Rc7 19. Bxc6 bxc6 20. Rc4 Bf8 21. Rfc1 Rac8 22. Bd2 {1-0 (41) Bryant,J (2443)-Hilby,C (2380) Whittier 2017}) 15. Qb3 {[%emt 0:04:30]} Nd5 $146 {[%emt 0:09:30]} ({Predecessor:} 15... a5 16. a3 Nd5 17. Qxb7 Rb8 18. Qa6 Rb3 19. Rfb1 Rxb1+ 20. Rxb1 Nc3 21. Rc1 Nxe2+ 22. Qxe2 {0-1 (54) Cserba,A (2233)-Beck,F (2095) Karlsruhe 2003}) 16. Rac1 {[%emt 0:06:30]} Rc8 {[%emt 0:37:00]} 17. Rxc8 {[%emt 0:00:30]} Bxc8 {[%emt 0:00:30]} 18. Bc4 {[%emt 0:06:30]} Nb6 {[%emt 0:05:30]} 19. d5 {[%emt 0:01:30]} Nxc4 {[%emt 0:04:30]} 20. Qxc4 {[%emt 0:00:00]} b6 {[%emt 0:00:30]} 21. Rd1 {[%emt 0:04:00]} Bb7 {[%emt 0:01:00]} 22. Bf4 {[%emt 1:04:00]} Qd7 {[%emt 0:02:30]} 23. Qb3 {[%emt 0:08:30]} Qf5 {[%emt 0:14:30]} 24. Bg3 Rd8 25. h3 {[%emt 1:22:30]} Qe4 {[%emt 1:17:30]} 26. d6 {[%emt 0:00:30]} exd6 {[%emt 0:00:30]} 27. exd6 {[%emt 0:00:30]} Qe6 {[%emt 0:00:30]} 28. Qa4 {[%emt 0:03:09]} Bxf3 {[%emt 0:07:25]} 29. gxf3 {[%emt 0:00:05]} Rd7 {[%emt 0:04:36]} 30. Rc1 {[%emt 0:03:36]} Bf8 {[%emt 0:02:28]} 31. Rc7 $14 {[%emt 0:01:20]} Rd8 {[%emt 0:05:20]} 32. Qh4 {[%emt 0:00:33]} Rxd6 {[%emt 0:03:58]} 33. Bxd6 {[%emt 0:00:11]} Bxd6 {[%emt 0:00:06]} 34. Rxa7 {[%emt 0:00:52]} Bc5 {[%emt 0:00:07]} 35. Kg2 {[%emt 0:01:42]} Kg7 {[%emt 0:00:31]} 36. Qe4 {[%emt 0:04:31]} Qf6 {[%emt 0:00:25]} 37. f4 {[%emt 0:01:09]} Bd6 {[%emt 0:01:04]} 38. Ra4 {[%emt 0:00:22]} h5 {[%emt 0:01:31]} 39. Rc4 {[%emt 0:04:07]} Bc5 {[%emt 0:00:56]} 40. Qe5 {[%emt 0:00:00]} 1-0